bitfinex/quotes_SOLUSD_20250226
["timestamp","ask_amount","ask_price","bid_price","bid_amount"]
[1740562681430,20.0,141.67,141.62,82.9]
[1740562681637,7.0591,141.66,141.62,82.9]
[1740562682541,7.0556,141.73,141.63,18.64964886]
[1740562682726,7.0556,141.73,141.63,237.74964886]
[1740562683034,0.03,141.7,141.63,238.74964886]
[1740562683342,0.03,141.7,141.63,220.1]
[1740562683517,0.03,141.7,141.64,18.64964886]
[1740562683723,0.03,141.7,141.64,25.70974886]
[1740562684124,0.03,141.7,141.64,18.64964886]
[1740562684629,0.03,141.7,141.63,226.1605]
[1740562684835,20.03,141.7,141.63,82.9]
[1740562685020,0.03,141.7,141.64,18.64964886]
[1740562685416,0.03,141.7,141.68,0.08657679]
[1740562685742,0.03,141.7,141.68,82.98657679]
[1740562690322,0.03,141.7,141.68,0.08657679]
[1740562690548,20.0,141.69,141.68,0.08657679]
[1740562691137,27.0576,141.69,141.68,0.08657679]
[1740562691522,47.21574886,141.69,141.68,7.679e-05]
[1740562691836,64.85984886,141.69,141.61,82.9]
[1740562692042,81.1,141.68,141.61,82.9]
[1740562692753,46.2102,141.69,141.61,219.1]
[1740562692933,28.5661,141.69,141.61,226.1615]
[1740562693135,0.03,141.7,141.62,18.64964886]
[1740562693536,0.03,141.7,141.62,237.74964886]
[1740562694236,0.03,141.7,141.63,7.0606]
[1740562694449,0.03,141.7,141.63,226.1606]
[1740562695555,20.0,141.69,141.63,219.1]
[1740562696150,0.03,141.7,141.63,219.1]
[1740562697040,20.0,141.69,141.63,219.1]
[1740562697237,101.1,141.69,141.6,82.9]
[1740562697438,105.8034,141.68,141.6,82.9]
[1740562698235,105.8034,141.68,141.59,6.4348]
[1740562698436,105.8034,141.68,141.57,82.9]
[1740562698437,20.0,141.64,141.57,82.9]
[1740562698664,20.0,141.63,141.57,82.9]
[1740562699158,20.0,141.63,141.55,82.9]
[1740562699456,7.0611,141.62,141.55,82.9]
[1740562699845,24.7139,141.62,141.55,82.9]
[1740562703357,81.1,141.61,141.53,88.9214]
[1740562703538,1.5085,141.6,141.53,82.9]
[1740562704550,24.7192,141.59,141.53,82.9]
[1740562706259,3.48268874,141.58,141.53,82.9]
[1740562706637,7.0636,141.57,141.53,82.9]
[1740562707863,7.0636,141.57,141.53,82.963]
[1740562710054,7.0636,141.57,141.53,0.063]
[1740562710250,105.8227,141.57,141.53,0.063]
[1740562712667,88.1636,141.57,141.53,0.063]
[1740562712973,7.0626,141.59,141.53,82.963]
[1740562713479,7.0623,141.6,141.53,219.163]
[1740562714554,7.0616,141.61,141.53,226.2284]
[1740562715465,24.7157,141.61,141.53,219.163]
[1740562717770,20.0,141.58,141.53,219.163]
[1740562717957,81.1,141.6,141.53,82.963]
[1740562718160,20.0,141.57,141.53,82.963]
[1740562718368,20.0,141.56,141.53,82.963]
[1740562719048,7.0646,141.55,141.53,82.963]
[1740562719250,7.0646,141.55,141.53,0.063]
[1740562719445,7.0636,141.57,141.53,0.063]
[1740562723880,24.7227,141.57,141.53,0.063]
[1740562728480,24.7227,141.57,141.54,0.56864628]
[1740562734066,7.0636,141.57,141.54,0.56864628]
[1740562735470,24.7203,141.59,141.54,0.56864628]
[1740562735671,105.8203,141.59,141.54,0.56864628]
[1740562735865,81.1,141.58,141.54,0.56864628]
[1740562736069,1.5809,141.57,141.53,0.063]
[1740562736490,20.0,141.54,141.53,0.063]
[1740562736890,20.0,141.54,141.53,0.20516157]
[1740562737396,20.0,141.54,141.53,0.63164628]
[1740562737701,27.0651,141.54,141.53,0.63164628]
[1740562740287,7.0651,141.54,141.53,0.63164628]
[1740562741090,27.0651,141.54,141.53,0.063]
[1740562741291,20.0,141.52,141.51,0.21324235]
[1740562741503,20.0,141.52,141.51,0.78188863]
[1740562742087,20.0,141.53,141.52,0.42648471]
[1740562742393,20.0,141.53,141.52,0.56864628]
[1740562743100,27.0656,141.53,141.52,0.56864628]
[1740562744784,7.0646,141.55,141.53,0.14216157]
[1740562744977,8.6435,141.59,141.53,0.14216157]
[1740562745176,24.7192,141.59,141.53,0.14216157]
[1740562745398,7.0626,141.59,141.53,0.14216157]
[1740562745594,7.0626,141.59,141.55,0.14216157]
[1740562745893,7.0623,141.6,141.57,0.14216157]
[1740562746273,7.08377877,141.61,141.57,0.14216157]
[1740562746475,3.45622296,141.62,141.57,0.14216157]
[1740562747098,20.0,141.6,141.57,0.14216157]
[1740562747277,82.6809,141.66,141.59,0.14216157]
[1740562747476,7.0596,141.65,141.59,0.14216157]
[1740562747676,7.0586,141.67,141.63,0.56864628]
[1740562747978,0.03,141.68,141.63,83.46864628]
[1740562749278,0.03,141.68,141.63,90.52874628]
[1740562749480,0.03,141.68,141.65,0.56864628]
[1740562749682,0.03,141.68,141.65,219.66864628]
[1740562750091,0.03,141.68,141.67,0.56864628]
[1740562750289,0.03,141.68,141.67,83.46864628]
[1740562751594,0.03,141.68,141.67,246.55149514]
[1740562755391,0.03,141.68,141.67,227.90184628]
[1740562755591,0.03,141.68,141.67,6.6603]
[1740562756082,0.03,141.68,141.67,6.80246157]
[1740562756288,0.03,141.68,141.67,7.22894628]
[1740562757517,0.03,141.68,141.67,226.32894628]
[1740562760720,0.03,141.68,141.67,252.03719514]
[1740562760924,0.03,141.68,141.67,253.03719514]
[1740562761292,7.0526,141.79,141.75,0.56864628]
[1740562761795,7.0521,141.8,141.75,0.56864628]
[1740562764222,10.65394422,141.95,141.82,9.08678471]
[1740562764414,10.65394422,141.95,141.91,0.56864628]
[1740562764415,7.0451,141.95,141.91,0.56864628]
[1740562764603,88.1438,141.97,141.91,0.56864628]
[1740562765312,7.0438,141.97,141.91,0.56864628]
[1740562765922,25.6531,141.97,141.91,0.56864628]
[1740562766104,100.74964886,141.96,141.91,0.56864628]
[1740562766612,20.0,141.93,141.91,0.56864628]
[1740562766819,20.0,141.92,141.91,0.56864628]
[1740562768227,27.0462,141.92,141.91,0.56864628]
[1740562769610,27.0462,141.92,141.9,0.21324235]
[1740562769812,27.0462,141.92,141.91,0.56864628]
[1740562772011,27.0462,141.92,141.9,0.21324235]
[1740562773920,27.0462,141.92,141.91,0.28432314]
[1740562774224,27.0462,141.92,141.9,0.21324235]
[1740562775316,1.0,141.86,141.77,6.6603]
[1740562775520,81.1,141.85,141.77,6.6603]
[1740562775930,81.1,141.85,141.78,0.28432314]
[1740562776138,81.1,141.85,141.77,6.6603]
[1740562776629,81.1,141.85,141.79,0.14216157]
[1740562776833,81.1,141.85,141.77,6.6603]
[1740562777024,7.0501,141.84,141.77,6.6603]
[1740562777217,7.0501,141.84,141.77,6.87354235]
[1740562777418,7.0501,141.84,141.78,0.56864628]
[1740562777618,7.0501,141.84,141.78,0.28432314]
[1740562777931,7.0501,141.84,141.83,0.42648471]
[1740562778924,24.6723,141.86,141.84,0.28432314]
[1740562779121,24.6723,141.86,141.85,0.14216157]
[1740562779327,24.6723,141.86,141.85,0.42648471]
[1740562780736,17.6231,141.86,141.85,0.42648471]
[1740562781319,18.9090325,141.86,141.85,0.42648471]
[1740562782142,8.3351325,141.86,141.85,0.56864628]
[1740562782354,1.2859325,141.86,141.85,0.56864628]
[1740562788249,1.2859325,141.86,141.85,83.46864628]
[1740562788427,1.2859325,141.86,141.85,115.29829514]
[1740562790050,0.03,141.92,141.91,0.56864628]
[1740562791752,0.03,141.92,141.91,83.46864628]
[1740562793431,0.03,141.92,141.91,90.51534628]
[1740562794253,0.03,141.92,141.91,109.16499514]
[1740562794637,0.03,141.92,141.91,162.46499514]
[1740562795240,0.03,141.92,141.91,245.36499514]
[1740562795834,0.03,141.92,141.91,251.49529514]
[1740562797556,0.03,141.92,141.91,253.49529514]
[1740562798133,7.0418,142.01,142.0,0.28432314]
[1740562798337,7.0418,142.01,142.0,0.56864628]
[1740562798557,2.83741514,142.06,142.03,0.28432314]
[1740562798745,7.0382,142.08,142.05,0.14216157]
[1740562799471,9.84304618,142.08,142.01,0.56864628]
[1740562799635,24.6339,142.08,142.01,0.56864628]
[1740562800340,20.0,142.05,142.01,0.56864628]
[1740562800747,81.1,142.07,142.01,0.56864628]
[1740562801961,24.6373,142.06,142.01,0.56864628]
[1740562802462,105.7373,142.06,142.01,0.56864628]
[1740562802759,1.643,142.05,142.01,0.42648471]
[1740562802942,81.1,142.04,142.0,0.21324235]
[1740562803143,20.0,142.01,142.0,0.21324235]
[1740562803838,27.0417,142.01,142.0,0.21324235]
[1740562804361,27.0417,142.01,142.0,0.35540392]
[1740562804872,8.6827,142.05,142.04,0.56864628]
[1740562806468,7.0397,142.05,142.04,0.56864628]
[1740562806761,7.0397,142.05,142.04,0.35544628]
[1740562806963,7.0397,142.05,142.04,0.28432314]
[1740562807167,24.6391,142.05,142.0,0.21324235]
[1740562807364,81.1,142.04,142.0,0.21324235]
[1740562807666,1.643,142.03,142.0,0.21324235]
[1740562807962,7.0412,142.02,142.0,0.21324235]
[1740562808261,81.1,142.01,141.93,82.9]
[1740562809154,20.0,141.97,141.91,0.21324235]
[1740562809469,101.1,141.97,141.91,0.21324235]
[1740562810169,24.6547,141.96,141.91,0.21324235]
[1740562810466,7.0442,141.96,141.91,0.21324235]
[1740562810670,7.0442,141.96,141.89,83.11324235]
[1740562810671,24.6547,141.96,141.89,83.11324235]
[1740562810871,1.643,141.95,141.89,0.21324235]
[1740562811452,1.643,141.95,141.9,0.42648471]
[1740562811751,87.4379,141.94,141.9,0.42648471]
[1740562811950,87.4379,141.94,141.89,0.21324235]
[1740562812154,7.0457,141.93,141.9,0.42648471]
[1740562812348,7.0457,141.93,141.9,0.14216157]
[1740562812848,7.0457,141.93,141.9,0.28432314]
[1740562813051,20.0,141.92,141.91,0.14216157]
[1740562813463,7.0457,141.93,141.92,0.14216157]
[1740562813669,88.1453,141.94,141.92,0.28432314]
[1740562814264,88.1453,141.94,141.9,0.42648471]
[1740562814459,105.7583,141.94,141.9,0.14216157]
[1740562814771,105.7583,141.94,141.89,0.21324235]
[1740562814955,105.7583,141.94,141.9,0.56864628]
[1740562815554,105.7583,141.94,141.9,0.28432314]
[1740562815978,105.7583,141.94,141.92,0.14216157]
[1740562816681,82.1,141.93,141.89,0.21324235]
[1740562816978,20.0,141.89,141.85,0.063]
[1740562817169,20.0,141.88,141.85,0.063]
[1740562817367,20.0,141.86,141.85,0.063]
[1740562817564,20.0,141.86,141.85,0.34732314]
[1740562817882,20.0,141.86,141.85,0.063]
[1740562818273,27.0492,141.86,141.85,0.063]
[1740562819680,27.0492,141.86,141.85,0.0001]
[1740562819981,46.69884886,141.86,141.85,0.0001]
[1740562820161,46.69884886,141.86,141.81,0.14216157]
[1740562820162,1.0,141.84,141.77,0.21324235]
[1740562820575,19.64964886,141.83,141.77,0.21324235]
[1740562820994,1.0,141.84,141.77,0.21324235]
[1740562821292,20.0,141.82,141.79,0.14216157]
[1740562821994,20.0,141.84,141.78,0.28432314]
[1740562822200,7.0506,141.83,141.81,0.42648471]
[1740562822365,5.11484719,141.87,141.83,0.42648471]
[1740562822366,7.0497,141.85,141.83,0.42648471]
[1740562822692,7.0497,141.85,141.84,0.42648471]
[1740562823467,7.0482,141.88,141.87,0.42648471]
[1740562823864,7.0472,141.9,141.87,0.42648471]
[1740562824091,88.1472,141.9,141.87,0.42648471]
[1740562824973,88.1472,141.9,141.87,0.28432314]
[1740562825177,20.0,141.88,141.87,0.28432314]
[1740562826480,27.0482,141.88,141.87,0.34732314]
[1740562827186,27.0482,141.88,141.87,0.48948471]
[1740562827388,7.0482,141.88,141.87,0.48948471]
[1740562828577,7.0477,141.89,141.87,0.48948471]
[1740562828978,7.0477,141.89,141.88,0.42648471]
[1740562829179,7.0477,141.89,141.88,0.14216157]
[1740562829394,7.0477,141.89,141.88,0.28432314]
[1740562830671,27.0472,141.9,141.89,0.14216157]
[1740562831095,27.0472,141.9,141.89,0.42648471]
[1740562831264,27.0472,141.9,141.89,0.28432314]
[1740562832983,125.7652,141.9,141.87,0.063]
[1740562833178,99.74964886,141.89,141.8,88.9542]
[1740562833376,81.1,141.88,141.77,226.36664235]
[1740562833575,81.1,141.88,141.78,0.56864628]
[1740562833997,126.03188964,141.9,141.78,219.66864628]
[1740562834381,24.6652,141.9,141.8,0.56864628]
[1740562834587,24.6652,141.9,141.8,219.66864628]
[1740562834977,24.6652,141.9,141.82,0.56864628]
[1740562836196,24.6652,141.9,141.82,0.14216157]
[1740562836392,24.6652,141.9,141.81,7.19366157]
[1740562836593,24.6652,141.9,141.85,0.14216157]
[1740562836796,105.7652,141.9,141.86,0.14216157]
[1740562837677,105.7652,141.9,141.86,0.28432314]
[1740562837881,105.7652,141.9,141.87,0.14216157]
[1740562838901,105.7652,141.9,141.86,0.14216157]
[1740562839106,141.0012,141.9,141.85,0.28432314]
[1740562839277,141.0012,141.9,141.83,0.14216157]
[1740562839477,99.74964886,141.89,141.83,0.14216157]
[1740562839686,20.0,141.85,141.83,0.14216157]
[1740562839893,20.0,141.85,141.8,0.063]
[1740562840290,7.0501,141.84,141.8,0.063]
[1740562840488,7.0501,141.84,141.81,0.28432314]
[1740562841184,7.0501,141.84,141.81,0.14216157]
[1740562841581,7.0501,141.84,141.81,0.28432314]
[1740562842984,81.1,141.87,141.83,0.28432314]
[1740562843186,7.0487,141.88,141.83,0.28432314]
[1740562843397,7.0487,141.88,141.87,0.28432314]
[1740562843593,7.0479,141.89,141.87,0.28432314]
[1740562844600,88.1473,141.9,141.87,0.28432314]
[1740562848089,105.7653,141.9,141.84,0.14216157]
[1740562848284,81.1,141.89,141.84,0.14216157]
[1740562848812,7.0482,141.88,141.84,0.14216157]
[1740562850013,81.1,141.87,141.8,6.4553]
[1740562850382,81.1,141.87,141.81,0.56864628]
[1740562850730,81.1,141.87,141.8,6.4553]
[1740562850903,24.6722,141.86,141.8,6.4553]
[1740562851214,81.1,141.85,141.8,0.063]
[1740562851504,82.6976,141.84,141.8,0.063]
[1740562851718,20.0,141.81,141.8,0.063]
[1740562852210,81.1,141.83,141.8,0.063]
[1740562853114,88.1509,141.83,141.8,0.063]
[1740562853407,81.1,141.82,141.8,0.063]
[1740562855006,18.64964886,141.81,141.8,0.063]
[1740562855194,25.70124886,141.81,141.8,0.063]
[1740562855600,29.24607262,141.81,141.8,0.063]
[1740562856497,20.0,141.81,141.8,0.63164628]
[1740562857017,27.0516,141.81,141.8,0.63164628]
[1740562857600,7.0516,141.81,141.8,0.63164628]
[1740562858223,20.0,141.82,141.81,0.14216157]
[1740562858406,27.0511,141.82,141.81,0.14216157]
[1740562860504,7.0511,141.82,141.81,0.56864628]
[1740562861113,81.1,141.85,141.82,0.14216157]
[1740562861314,7.0501,141.84,141.83,0.14216157]
[1740562863321,43.32514886,141.84,141.8,0.063]
[1740562864500,20.0,141.81,141.8,0.063]
[1740562864822,20.0,141.81,141.75,89.2805]
[1740562864823,20.0,141.78,141.75,0.063]
[1740562865407,20.0,141.78,141.75,0.20516157]
[1740562865609,81.1,141.77,141.75,0.063]
[1740562866630,7.0541,141.76,141.75,0.063]
[1740562869519,24.6895,141.76,141.72,0.063]
[1740562869707,81.1,141.75,141.72,0.063]
[1740562870430,81.1,141.75,141.74,0.56864628]
[1740562870431,88.1546,141.75,141.74,0.56864628]
[1740562870728,7.054,141.77,141.75,0.42648471]
[1740562870924,7.054,141.77,141.75,0.28432314]
[1740562871639,1.6364,141.81,141.77,0.56864628]
[1740562871927,7.0521,141.8,141.77,0.56864628]
[1740562873210,7.0521,141.8,141.78,0.28432314]
[1740562873412,7.0521,141.8,141.79,0.56864628]
[1740562873818,81.1,141.83,141.79,0.56864628]
[1740562874013,7.0511,141.82,141.79,0.56864628]
[1740562874227,81.1,141.83,141.81,0.28432314]
[1740562874432,7.0506,141.84,141.83,0.28432314]
[1740562875834,0.03,141.85,141.84,0.56864628]
[1740562876328,0.03,141.85,141.84,0.42648471]
[1740562876517,0.03,141.85,141.84,0.56864628]
[1740562876920,7.0797,141.85,141.84,0.28432314]
[1740562877242,7.0797,141.85,141.84,0.56864628]
[1740562877835,0.03,141.85,141.84,0.56864628]
[1740562880941,0.03,141.85,141.84,0.28432314]
[1740562881629,0.03,141.9,141.85,2.01234628]
[1740562881831,0.03,141.9,141.87,1.56864628]
[1740562882220,0.03,141.9,141.87,0.56864628]
[1740562882642,0.03,141.9,141.89,0.56864628]
[1740562882843,0.03,141.9,141.89,83.46864628]
[1740562883821,0.03,141.9,141.89,90.51634628]
[1740562884230,0.03,141.9,141.89,83.32648471]
[1740562884828,0.03,141.9,141.89,90.51634628]
[1740562887859,0.03,141.9,141.89,82.9]
[1740562888069,0.03,141.9,141.84,89.5202]
[1740562888264,20.03,141.9,141.84,89.5202]
[1740562888564,20.03,141.9,141.82,7.051]
[1740562888845,20.03,141.9,141.83,0.56864628]
[1740562889065,20.03,141.9,141.82,7.051]
[1740562889229,20.03,141.9,141.83,0.56864628]
[1740562889554,20.03,141.9,141.82,7.051]
[1740562889761,0.03,141.9,141.83,0.42648471]
[1740562890052,0.03,141.9,141.83,0.56864628]
[1740562890635,0.03,141.9,141.85,0.56864628]
[1740562891557,0.03,141.9,141.85,7.61804628]
[1740562892644,0.03,141.9,141.85,83.46864628]
[1740562893248,0.03,141.9,141.85,82.9]
[1740562893446,0.03,141.9,141.86,0.56864628]
[1740562893651,0.03,141.9,141.86,7.61774628]
[1740562895046,0.03,141.9,141.86,0.56864628]
[1740562896359,0.03,141.9,141.86,7.61774628]
[1740562897075,0.03,141.9,141.86,90.51774628]
[1740562897578,0.03,141.9,141.88,0.56864628]
[1740562897762,0.03,141.9,141.88,90.51664628]
[1740562898064,0.03,141.9,141.88,83.46864628]
[1740562898264,0.03,141.9,141.88,90.51684628]
[1740562899840,0.03,141.9,141.88,83.46864628]
[1740562900042,0.03,141.9,141.85,82.9]
[1740562900946,0.03,141.9,141.86,0.56864628]
[1740562901267,0.03,141.9,141.85,82.9]
[1740562901454,0.03,141.9,141.86,0.56864628]
[1740562901656,0.03,141.9,141.86,83.46864628]
[1740562902056,0.03,141.9,141.88,0.56864628]
[1740562904149,0.03,141.9,141.88,7.61634628]
[1740562906055,0.03,141.9,141.89,7.11584628]
[1740562906970,0.03,141.9,141.89,14.16354628]
[1740562908672,0.03,141.9,141.89,233.26354628]
[1740562908873,0.03,142.0,141.92,0.56864628]
[1740562909072,9.86382257,142.0,141.92,83.46864628]
[1740562909277,1.5353,141.98,141.92,0.56864628]
[1740562910162,18.64964886,141.97,141.92,0.56864628]
[1740562910377,7.0447,141.95,141.89,0.21324235]
[1740562910577,88.1447,141.95,141.9,0.56864628]
[1740562910880,88.1447,141.95,141.9,0.42648471]
[1740562910881,81.1,141.94,141.9,0.42648471]
[1740562911066,81.1,141.94,141.91,0.14216157]
[1740562911459,81.1,141.94,141.89,0.21324235]
[1740562911660,81.1,141.94,141.9,0.28432314]
[1740562912060,81.1,141.94,141.89,0.21324235]
[1740562912259,7.0462,141.92,141.9,0.28432314]
[1740562916263,7.0437,141.97,141.92,0.28432314]
[1740562916482,7.0437,141.97,141.94,0.28432314]
[1740562922110,7.0437,141.97,141.91,0.28432314]
[1740562922270,7.0437,141.97,141.92,0.14216157]
[1740562922584,18.64964886,141.96,141.89,0.21324235]
[1740562922772,81.1,141.95,141.89,0.21324235]
[1740562922973,79.409503,141.95,141.89,0.21324235]
[1740562923175,7.0452,141.94,141.89,0.21324235]
[1740562923389,98.05915186,141.93,141.89,0.21324235]
[1740562923583,79.409503,141.92,141.9,0.28432314]
[1740562923771,79.409503,141.92,141.89,0.21324235]
[1740562923973,79.409503,141.92,141.9,0.28432314]
[1740562924381,79.409503,141.92,141.89,0.21324235]
[1740562924382,1.5641,141.91,141.89,0.21324235]
[1740562924584,98.05915186,141.9,141.85,0.063]
[1740562924793,79.409503,141.89,141.86,0.14216157]
[1740562925289,7.0482,141.88,141.86,0.14216157]
[1740562925675,7.0482,141.88,141.85,0.063]
[1740562926077,7.0482,141.88,141.86,0.14216157]
[1740562926486,79.409503,141.89,141.86,0.42648471]
[1740562926678,6.5716,141.92,141.89,0.28432314]
[1740562926679,7.0463,141.92,141.89,0.28432314]
[1740562926886,1.6647,141.94,141.9,0.42648471]
[1740562926887,8.71,141.94,141.9,0.42648471]
[1740562927483,1.6647,141.94,141.92,0.42648471]
[1740562927690,86.454303,141.95,141.92,0.42648471]
[1740562928279,18.64964886,141.94,141.92,0.28432314]
[1740562929297,7.0453,141.94,141.92,0.42648471]
[1740562930484,7.0453,141.94,141.92,0.28432314]
[1740562931294,0.03,141.97,141.94,0.28432314]
[1740562931611,0.03,141.97,141.96,0.56864628]
[1740562931984,0.03,141.97,141.96,0.42648471]
[1740562932805,7.0737,141.97,141.96,0.42648471]
[1740562933001,0.03,141.97,141.96,0.42648471]
[1740562935193,0.03,141.97,141.96,0.56864628]
[1740562937818,0.03,141.97,141.96,90.51284628]
[1740562938683,0.03,141.97,141.96,247.36249514]
[1740562941215,0.03,142.0,141.99,0.56864628]
[1740562941395,0.03,142.0,141.99,261.85149514]
[1740562941595,0.03,142.0,141.99,267.96719514]
[1740562942204,7.0379,142.09,142.01,0.14216157]
[1740562942410,7.0374,142.1,142.07,0.14216157]
[1740562942810,1.8970976,142.11,142.08,0.28432314]
[1740562943005,1.8970976,142.11,142.09,0.14216157]
[1740562943207,1.8970976,142.11,142.1,0.56864628]
[1740562945904,1.8970976,142.11,142.1,0.42648471]
[1740562946501,8.9338976,142.11,142.04,82.9]
[1740562946901,8.9338976,142.11,142.05,0.56864628]
[1740562948423,1.8970976,142.11,142.05,90.50834628]
[1740562948632,1.8970976,142.11,142.05,91.50834628]
[1740562950112,1.8970976,142.11,142.05,90.50834628]
[1740562951122,8.9338976,142.11,142.05,90.50834628]
[1740562951305,1.8970976,142.11,142.05,90.50834628]
[1740562951829,1.8970976,142.11,142.05,91.50834628]
[1740562953134,1.8970976,142.11,142.07,0.14216157]
[1740562953303,1.8970976,142.11,142.07,83.46864628]
[1740562953638,1.8970976,142.11,142.07,220.66864628]
[1740562953808,1.8970976,142.11,142.07,221.66864628]
[1740562954217,1.8970976,142.11,142.1,7.60584628]
[1740562954423,1.8970976,142.11,142.1,90.50584628]
[1740562954620,1.8970976,142.11,142.1,83.46864628]
[1740562958333,1.8970976,142.11,142.1,90.50584628]
[1740562959334,1.8970976,142.11,142.1,83.46864628]
[1740562959722,1.8970976,142.11,142.1,83.18432314]
[1740562960033,1.8970976,142.11,142.1,83.46864628]
[1740562960231,1.8970976,142.11,142.1,83.32648471]
[1740562960420,1.8970976,142.11,142.1,83.46864628]
[1740562960822,1.8970976,142.11,142.1,83.32648471]
[1740562961125,1.8970976,142.11,142.1,83.46864628]
[1740562962235,1.8970976,142.11,142.1,0.56864628]
[1740562962743,1.8970976,142.11,142.1,0.42648471]
[1740562963239,8.9338976,142.11,142.08,82.9]
[1740562963541,8.9338976,142.11,142.09,0.56864628]
[1740562963736,8.9338976,142.11,142.09,0.14216157]
[1740562964037,8.9338976,142.11,142.04,82.9]
[1740562964237,26.5258976,142.11,142.04,82.9]
[1740562964439,26.5258976,142.11,142.05,0.56864628]
[1740562964638,8.9338976,142.11,142.05,0.56864628]
[1740562965224,8.9338976,142.11,142.05,0.42648471]
[1740562965421,8.9338976,142.11,142.04,82.9]
[1740562965815,8.9338976,142.11,142.05,0.56864628]
[1740562966017,79.409503,142.1,142.02,83.11324235]
[1740562966525,79.409503,142.1,142.03,0.56864628]
[1740562967247,7.0377,142.09,142.03,0.56864628]
[1740562967439,1.586,142.08,142.0,82.963]
[1740562967742,80.995503,142.08,142.02,0.14216157]
[1740562968052,80.995503,142.08,142.0,82.963]
[1740562968337,80.995503,142.08,142.01,0.56864628]
[1740562968539,80.995503,142.08,142.01,0.28432314]
[1740562968919,80.995503,142.08,142.04,0.28432314]
[1740562969132,80.995503,142.08,142.06,0.28432314]
[1740562969529,80.995503,142.08,142.07,0.56864628]
[1740562969530,1.586,142.08,142.07,0.56864628]
[1740562970646,8.6242,142.08,142.07,0.56864628]
[1740562970940,1.586,142.08,142.07,0.28432314]
[1740562971419,7.0377,142.1,142.08,0.56864628]
[1740562973833,8.9339976,142.11,142.08,0.56864628]
[1740562977229,8.9339976,142.11,142.08,7.60654628]
[1740562977230,1.8970976,142.11,142.08,7.60654628]
[1740562977430,1.8970976,142.11,142.08,0.56864628]
[1740562977936,1.8970976,142.11,142.08,7.60674628]
[1740562978132,1.8970976,142.11,142.08,0.56864628]
[1740562979957,8.9338976,142.11,142.08,0.56864628]
[1740562980158,8.9338976,142.11,142.04,142.6397]
[1740562980343,1.6184,142.1,142.02,83.11324235]
[1740562980547,1.6184,142.1,142.03,0.56864628]
[1740562980948,1.6184,142.1,142.02,82.9]
[1740562981560,1.6184,142.1,142.03,0.56864628]
[1740562982059,7.0377,142.09,142.02,89.9411]
[1740562982350,7.0377,142.09,142.03,0.56864628]
[1740562982557,1.6484,142.1,142.03,0.56864628]
[1740562982733,8.6858,142.1,142.03,0.56864628]
[1740562983131,88.095303,142.1,142.03,0.56864628]
[1740562983436,105.688503,142.1,142.03,0.56864628]
[1740562984963,79.409503,142.09,142.0,82.963]
[1740562985152,79.409503,142.08,142.0,82.963]
[1740562985657,79.409503,142.08,142.02,0.14216157]
[1740562985961,7.0387,142.07,142.0,82.963]
[1740562986144,79.409503,142.08,142.0,90.0052]
[1740562986347,86.447803,142.08,142.02,0.14216157]
[1740562987658,86.447803,142.08,142.0,82.963]
[1740562987844,18.64964886,142.07,142.0,82.963]
[1740562988051,79.409503,142.06,142.0,0.063]
[1740562988254,79.409503,142.05,142.0,0.063]
[1740562989347,105.683303,142.04,142.0,0.063]
[1740562989544,18.64964886,142.03,142.0,0.063]
[1740562989748,79.409503,142.02,142.0,0.063]
[1740562990446,18.64964886,142.03,141.94,0.063]
[1740562990447,79.409503,142.01,141.94,0.063]
[1740562990657,79.409503,142.0,141.94,0.063]
[1740562991545,7.0427,141.99,141.94,0.063]
[1740562993146,7.0427,141.99,141.96,0.14216157]
[1740562993842,7.0427,141.99,141.95,0.28432314]
[1740562994050,7.0427,141.99,141.96,0.14216157]
[1740562994649,7.0417,142.01,141.99,0.28432314]
[1740562995363,7.0417,142.01,141.97,0.14216157]
[1740562995561,7.0417,142.01,141.95,82.9]